fUST/lending_fUST_20260129
["ID","MTS","AMOUNT","RATE_DAILY","PERIOD"]
[403916096,1769674713766,-2000.0,0.00038904,120]
[403916097,1769674713800,-2000.0,0.00038904,120]
[403916098,1769674713835,-1169.2,0.00038952,120]
[403916099,1769674713867,-382.1866915,0.00039,120]
[403916100,1769674713900,-1000.0,0.00039,120]
[403916101,1769674713933,-1189.0,0.00039,120]
[403916102,1769674713966,-4218.05189071,0.00039,120]
[403916103,1769674714017,-1000.0,0.00039,120]
[403916104,1769674714060,-2000.0,0.00039,120]
[403916105,1769674714100,-2148.06027739,0.00039,120]
[403916106,1769674714142,-1169.2,0.00039052,120]
[403916107,1769674714185,-1169.2,0.00039152,120]
[403916108,1769674714224,-1462.76,0.00039178,40]
[403916109,1769674714264,-2319.29,0.00039178,120]
[403916110,1769674714302,-1169.2,0.00039252,120]
[403916111,1769674714340,-1070.71313743,0.000393,120]
[403916112,1769674714379,-1169.2,0.00039352,120]
[403916113,1769674714418,-1169.2,0.00039452,120]
[403916114,1769674714453,-2000.0,0.00039452,120]
[403916115,1769674714488,-2000.0,0.00039452,120]
[403916116,1769674714524,-2000.0,0.00039452,120]
[403916117,1769674714556,-2307.98,0.00039486,120]
[403916118,1769674714589,-1522.82271,0.000395,120]
[403916119,1769674714621,-2500.0,0.000395,120]
[403916120,1769674714655,-1169.2,0.00039552,120]
[403916121,1769674714688,-444.37775,0.000396,120]
[403916122,1769674714722,-1169.2,0.00039652,120]
[403916123,1769674714762,-1462.76,0.00039726,41]
[403916124,1769674714798,-1169.2,0.00039752,120]
[403916125,1769674714833,-158.0,0.00039753,120]
[403916126,1769674714868,-1169.2,0.00039852,120]
[403916127,1769674714901,-741.44230038,0.00039877,120]
[403916128,1769674714934,-1376.8244658,0.0003989,120]
[403916129,1769674714968,-768.37866287,0.00039896,120]
[403916130,1769674715003,-2000.0,0.000399,120]
[403916131,1769674715038,-1169.2,0.00039952,120]
[403916132,1769674715075,-500.0,0.00039999,31]
[403916133,1769674715110,-366.6510295,0.00039999,31]
[403916134,1769674715147,-500.0,0.00039999,31]
[403916135,1769674715193,-230.1229055,0.00039999,31]
[403916136,1769674715235,-500.0,0.00039999,31]
[403916137,1769674715276,-500.0,0.00039999,31]
[403916138,1769674715316,-344.54955774,0.00039999,31]
[403916139,1769674715355,-201.04242239,0.00039999,31]
[403916140,1769674715395,-1137.03539005,0.0004,30]
[403916141,1769674715439,-500.0,0.0004,120]
[403916142,1769674715475,-1103.9347284,0.0004,120]
[403916143,1769674715509,-331.38010182,0.0004,120]
[403916144,1769674715545,-1000.0,0.0004,120]
[403916145,1769674715579,-30000.0,0.0004,60]
[403916146,1769674715614,-27999.67964534,0.0004,60]
[403916147,1769674715651,-1304354.57348519,0.0004,120]
[403916148,1769674715687,-2274187.09369898,0.0004,120]
[403916149,1769674715723,-951.0,0.0004,120]
[403916150,1769674715759,-200.0,0.0004,120]
[403916151,1769674715794,-3000.0,0.0004,120]
[403916152,1769674715829,-10457.46133232,0.0004,30]
[403916153,1769674715864,-11000.0,0.0004,120]
[403916154,1769674715900,-178.02465521,0.0004,30]
[403916155,1769674715936,-2000.0,0.0004,120]
[403916156,1769674715972,-2000.0,0.0004,120]
[403916157,1769674716009,-2000.0,0.0004,120]
[403916158,1769674716045,-29158.0,0.0004,120]
[403916159,1769674716083,-2498.28943198,0.0004,120]
[403916160,1769674716121,-802.84273086,0.0004,120]
[403916161,1769674716161,-853809.40652374,0.0004,120]
[403916162,1769674716405,-5000.0,0.00012078,2]
[403916163,1769674716573,-0.01,0.00012199,2]
[403916164,1769674719864,-731.38,0.00033698,30]
[403916165,1769674719901,-731.38,0.00034246,31]
[403916166,1769674719938,-177.231744,0.000345,31]
[403916167,1769674720010,-177.231744,0.00034587,31]
[403916168,1769674720048,-731.38,0.00034794,32]
[403916169,1769674720088,-731.38,0.00035342,33]
[403916170,1769674720131,-731.38,0.0003589,34]
[403916171,1769674720168,-731.38,0.00036438,35]
[403916172,1769674720204,-731.38,0.00036986,36]
[403916173,1769674720247,-731.38,0.00037534,37]
[403916174,1769674720285,-731.38,0.00038082,38]
[403916175,1769674720322,-731.38,0.0003863,39]
[403916176,1769674720359,-731.38,0.00039178,40]
[403916177,1769674720394,-2307.98,0.00039516,120]
[403916178,1769674720428,-731.38,0.00039726,41]
[403916179,1769674720465,-2274602.00326239,0.0004,120]
[403916180,1769674720500,-762.29553982,0.0004,120]
[403916181,1769674720537,-20010.30328845,0.0004,120]
[403916182,1769674720572,-607.92224342,0.0004,120]
[403916183,1769674720605,-171.62406598,0.0004,30]
[403916184,1769674720638,-824.11813738,0.0004,30]
[403916185,1769674720671,-438.73254644,0.0004,120]
[403916186,1769674720704,-13673.48,0.0004,30]
[403916187,1769674720738,-632.34,0.0004,30]
[403916188,1769674720772,-179.11,0.0004,30]
[403916189,1769674720807,-1169.2,0.00040052,120]
[403916190,1769674720845,-1169.2,0.00040152,120]
[403916191,1769674720881,-1169.2,0.00040252,120]
[403916192,1769674720917,-2319.29,0.00040273,120]
[403916193,1769674720953,-1169.2,0.00040352,120]
[403916194,1769674720990,-2000.0,0.00040548,120]
[403916195,1769674721023,-2000.0,0.00040548,120]
[403916196,1769674721056,-2000.0,0.00040548,120]
[403916197,1769674721089,-1169.2,0.00040552,120]
[403916198,1769674721124,-1169.2,0.00040652,120]
[403916199,1769674721159,-553.75437,0.000407,120]
[403916200,1769674721193,-1169.2,0.00040752,120]
[403916201,1769674721229,-1169.2,0.00040852,120]
[403916202,1769674721263,-2000.0,0.000409,120]
[403916203,1769674721297,-344.58,0.000409,90]
[403916204,1769674721331,-1169.2,0.00040952,120]
[403916205,1769674721365,-920.21,0.00040993,120]
[403916206,1769674721398,-2000.0,0.00041,120]
[403916207,1769674721431,-1000.0,0.00041,120]
[403916208,1769674721463,-50000.0,0.00041,120]
[403916209,1769674721494,-1000.0,0.00041,120]
[403916210,1769674721525,-3331.05241015,0.00041,120]
[403916211,1769674721559,-1169.2,0.00041052,120]
[403916212,1769674721592,-179.54,0.00041096,120]
[403916213,1769674721625,-3125.84,0.00041096,120]
[403916214,1769674721660,-4690.0,0.00041096,120]
[403916215,1769674721696,-3000.0,0.00041096,120]
[403916216,1769674721730,-2000.0,0.00041096,120]
[403916217,1769674721763,-2000.0,0.00041096,120]
[403916218,1769674721796,-2000.0,0.00041096,120]
[403916219,1769674721831,-1522.82278,0.000411,120]
[403916220,1769674721867,-218.33653584,0.000411,120]
[403916221,1769674721904,-218.33,0.000411,120]
[403916222,1769674721942,-169.81730565,0.000411,120]
[403916223,1769674721980,-169.81730565,0.000411,120]
[403916224,1769674722018,-169.81730565,0.000411,120]
[403916225,1769674722056,-169.81730565,0.000411,120]
[403916226,1769674722095,-169.81730565,0.000411,120]
[403916227,1769674722132,-169.81,0.000411,120]
[403916228,1769674722170,-156.2842198,0.000411,120]
[403916229,1769674722204,-156.2842198,0.000411,120]
[403916230,1769674722241,-156.2842198,0.000411,120]
[403916231,1769674722277,-156.2842198,0.000411,120]
[403916232,1769674722431,-156.2842198,0.000411,120]
[403916233,1769674722467,-156.2842198,0.000411,120]
[403916234,1769674722501,-156.2842198,0.000411,120]
[403916235,1769674722534,-156.2842198,0.000411,120]
[403916236,1769674722568,-156.28,0.000411,120]
[403916237,1769674722602,-164.09843079,0.000411,120]
[403916238,1769674722636,-164.09843079,0.000411,120]
[403916239,1769674722670,-164.09843079,0.000411,120]
[403916240,1769674722703,-164.09843079,0.000411,120]
[403916241,1769674722740,-164.09843079,0.000411,120]
[403916242,1769674722775,-164.09843079,0.000411,120]
[403916243,1769674722809,-164.09843079,0.000411,120]
[403916244,1769674722845,-164.09843079,0.000411,120]
[403916245,1769674722886,-164.09843079,0.000411,120]
[403916246,1769674722928,-164.09843079,0.000411,120]
[403916247,1769674722970,-164.09843079,0.000411,120]
[403916248,1769674723008,-164.09843079,0.000411,120]
[403916249,1769674723047,-164.09843079,0.000411,120]
[403916250,1769674723086,-164.09843079,0.000411,120]
[403916251,1769674723124,-164.09843079,0.000411,120]
[403916252,1769674723162,-164.09843079,0.000411,120]
[403916253,1769674723202,-164.09843079,0.000411,120]
[403916254,1769674723247,-164.09843079,0.000411,120]
[403916255,1769674723286,-164.09843079,0.000411,120]
[403916256,1769674723325,-164.09,0.000411,120]
[403916257,1769674723363,-164.30875776,0.000411,120]
[403916258,1769674723401,-164.30875776,0.000411,120]
[403916259,1769674723438,-164.30875776,0.000411,120]
[403916260,1769674723476,-164.30875776,0.000411,120]
[403916261,1769674723514,-164.30875776,0.000411,120]
[403916262,1769674723551,-164.30875776,0.000411,120]
[403916263,1769674723588,-164.30875776,0.000411,120]
[403916264,1769674723629,-164.30875776,0.000411,120]
[403916265,1769674723672,-164.3,0.000411,120]
[403916266,1769674723717,-172.52419565,0.000411,120]
[403916267,1769674723759,-172.52419565,0.000411,120]
[403916268,1769674723801,-172.52419565,0.000411,120]
[403916269,1769674723849,-172.52419565,0.000411,120]
[403916270,1769674723888,-172.52419565,0.000411,120]
[403916271,1769674723928,-172.52419565,0.000411,120]
[403916272,1769674723969,-172.52419565,0.000411,120]
[403916273,1769674724009,-172.52419565,0.000411,120]
[403916274,1769674724049,-172.52419565,0.000411,120]
[403916275,1769674724089,-172.52419565,0.000411,120]
[403916276,1769674724129,-172.52419565,0.000411,120]
[403916277,1769674724168,-172.52419565,0.000411,120]
[403916278,1769674724207,-172.52419565,0.000411,120]
[403916279,1769674724248,-172.52419565,0.000411,120]
[403916280,1769674724287,-172.52419565,0.000411,120]
[403916281,1769674724327,-172.52419565,0.000411,120]
[403916282,1769674724367,-172.52419565,0.000411,120]
[403916283,1769674724408,-172.52419565,0.000411,120]
[403916284,1769674724448,-172.52419565,0.000411,120]
[403916285,1769674724486,-172.52,0.000411,120]
[403916286,1769674724522,-1169.74641754,0.00041152,120]
[403916287,1769674724559,-444.37775,0.000413,120]
[403916288,1769674724595,-2724.03,0.000413,120]
[403916289,1769674724633,-2319.29,0.00041369,120]
[403916290,1769674724670,-600.0,0.000414,120]
[403916291,1769674724707,-526118.7325,0.0004144,30]
[403916292,1769674724742,-194.7135632,0.00041504,30]
[403916293,1769674724781,-920.21,0.00041591,120]
[403916294,1769674724818,-220.88687,0.000416,120]
[403916295,1769674724857,-807.67075359,0.00041896,120]
[403916296,1769674724894,-2000.0,0.000419,120]
[403916297,1769674724932,-500.0,0.00042,120]
[403916298,1769674724970,-2000.0,0.00042,120]
[403916299,1769674725009,-2000.0,0.00042,120]
[403916300,1769674725048,-6000.0,0.00042,30]
[403916301,1769674725087,-13673.48,0.00042,30]
[403916302,1769674725127,-632.34,0.00042,30]
[403916303,1769674725167,-179.11,0.00042,30]
[403916304,1769674725209,-920.21,0.00042189,120]
[403916305,1769674725250,-2319.29,0.00042465,120]
[403916306,1769674725287,-553.75437,0.000425,120]
[403916307,1769674725324,-200.0,0.0004276,120]
[403916308,1769674725359,-200.0,0.0004276,120]
[403916309,1769674725396,-200.0,0.0004276,120]
[403916310,1769674725434,-920.21,0.00042788,120]
[403916311,1769674725470,-206.0,0.000428,120]
[403916312,1769674725594,-2000.0,0.000429,120]
[403916313,1769674725655,-506.78,0.00043,120]
[403916314,1769674725694,-1000.0,0.00043,120]
[403916315,1769674725730,-3000.0,0.00043,120]
[403916316,1769674725765,-1000.0,0.00043,120]
[403916317,1769674725802,-444.37779,0.00043,120]
[403916318,1769674725841,-920.21,0.00043386,120]
[403916319,1769674725880,-75500.5146767,0.000435,120]
[403916320,1769674725919,-2319.29,0.00043561,120]
[403916321,1769674725960,-4615.96,0.00043717,120]
[403916322,1769674725999,-154469.69509828,0.000438,30]
[403916323,1769674726039,-3000.0,0.00043836,120]
[403916324,1769674726079,-846.9628443,0.00043896,120]
[403916325,1769674726118,-2000.0,0.000439,120]
[403916326,1769674726158,-920.21,0.00043984,120]
[403916327,1769674726199,-500.0,0.00044,120]
[403916328,1769674726240,-2000.0,0.00044,120]
[403916329,1769674726278,-1685.0,0.00044,120]
[403916330,1769674726313,-6000.0,0.00044,30]
[403916331,1769674726347,-632.34,0.000441,30]
[403916332,1769674726383,-13673.48,0.000441,30]
[403916333,1769674726430,-920.21,0.00044583,120]
[403916334,1769674726468,-2319.29,0.00044657,120]
[403916335,1769674726502,-5313.53,0.00044701,30]
[403916336,1769674726535,-1107.69226783,0.000448,120]
[403916337,1769674726568,-2000.0,0.000449,120]
[403916338,1769674726600,-251.24996373,0.000449,120]
[403916339,1769674726632,-470.06946188,0.00045,120]
[403916340,1769674726665,-506.18739204,0.00045,120]
[403916341,1769674726698,-600.0,0.00045,120]
[403916342,1769674726730,-1000.0,0.00045,120]
[403916343,1769674726763,-2498.36972175,0.00045,120]
[403916344,1769674726797,-200.0,0.00045,120]
[403916345,1769674726829,-3000.0,0.00045,120]
[403916346,1769674726865,-157.36712115,0.00045,120]
[403916347,1769674726899,-5162.3330108,0.00045,30]
[403916348,1769674726936,-688.79198778,0.00045,120]
[403916349,1769674726972,-25069.0,0.00045,120]
[403916350,1769674727007,-119999.999998,0.00045,30]
[403916351,1769674727042,-36000.0,0.00045,30]
[403916352,1769674727077,-730.0,0.00045,120]
[403916353,1769674727112,-402488.59385228,0.00045,30]
[403916354,1769674727149,-920.21,0.00045181,120]
[403916355,1769674727184,-3005.19187573,0.000454,120]
[403916356,1769674727218,-258.09115801,0.000454,120]
[403916357,1769674727259,-450958.9136,0.0004544,30]
[403916358,1769674727295,-2319.29,0.00045753,120]
[403916359,1769674727331,-920.21,0.00045779,120]
[403916360,1769674727366,-886.25493502,0.00045896,120]
[403916361,1769674727400,-2000.0,0.000459,120]
[403916362,1769674727437,-500.0,0.00046,120]
[403916363,1769674727474,-2000.0,0.00046,120]
[403916364,1769674727511,-120136.9305146,0.00046,30]
[403916365,1769674727546,-6000.0,0.00046,30]
[403916366,1769674727582,-632.34,0.00046305,30]
[403916367,1769674727619,-13673.48,0.00046305,30]
[403916368,1769674727654,-920.21,0.00046377,120]
[403916369,1769674727691,-180.08463978,0.00046741,35]
[403916370,1769674727729,-2319.29,0.00046849,120]
[403916371,1769674727764,-2000.0,0.000469,120]
[403916372,1769674727797,-920.21,0.00046976,120]
[403916373,1769674727830,-674.0,0.00047,120]
[403916374,1769674727864,-2000.0,0.00047,120]
[403916375,1769674727897,-1000.0,0.00047,120]
[403916376,1769674727933,-159.24768399,0.00047,120]
[403916377,1769674727970,-2724.03,0.000475,120]
[403916378,1769674728007,-920.21,0.00047574,120]
[403916379,1769674728045,-200.0,0.00047616,120]
[403916380,1769674728084,-200.0,0.00047616,120]
[403916381,1769674728124,-200.0,0.00047616,120]
[403916382,1769674728167,-925.54702573,0.00047896,120]
[403916383,1769674728207,-2000.0,0.000479,120]
[403916384,1769674728256,-2319.29,0.00047945,120]
[403916385,1769674728294,-6923.94,0.00047947,120]
[403916386,1769674728331,-1000.0,0.00048,120]
[403916387,1769674728369,-1081.16563,0.00048,120]
[403916388,1769674728407,-2362.4936632,0.00048,120]
[403916389,1769674728446,-500.0,0.00048,120]
[403916390,1769674728483,-416.770954,0.00048,120]
[403916391,1769674728516,-3000.0,0.00048,120]
[403916392,1769674728550,-400.34234,0.00048,120]
[403916393,1769674728689,-188.11779234,0.00048,120]
[403916394,1769674728723,-208.7,0.00048,120]
[403916395,1769674728758,-392.89045,0.00048,120]
[403916396,1769674728793,-6000.0,0.00048,30]
[403916397,1769674728828,-389.0,0.00048,120]
[403916398,1769674728863,-920.21,0.00048172,120]
[403916399,1769674728899,-2691.75416127,0.00048398,120]
[403916400,1769674728934,-2500.0,0.000485,120]
[403916401,1769674728969,-920.21,0.00048771,120]
[403916402,1769674729003,-135413.01282832,0.00048778,120]
[403916403,1769674729038,-1802.9708852,0.000488,120]
[403916404,1769674729072,-2000.0,0.000489,120]
[403916405,1769674729108,-3650.16536877,0.000489,120]
[403916406,1769674729144,-2270.0,0.00049,120]
[403916407,1769674729181,-2032.115425,0.00049,120]
[403916408,1769674729218,-3000.0,0.00049,120]
[403916409,1769674729261,-1000.0,0.00049,120]
[403916410,1769674729300,-38897.32913525,0.00049,120]
[403916411,1769674729337,-410.78268567,0.00049,120]
[403916412,1769674729376,-1021.0,0.00049041,120]
[403916413,1769674729416,-2319.29,0.00049041,120]
[403916414,1769674729451,-5000.0,0.000492,120]
[403916415,1769674729484,-10000.0,0.000492,120]
[403916416,1769674729519,-10000.0,0.00049315,120]
[403916417,1769674729550,-171.59445029,0.00049315,120]
[403916418,1769674729584,-238.21035873,0.00049315,120]
[403916419,1769674729619,-235.62795211,0.00049315,120]
[403916420,1769674729654,-1957.856,0.00049315,30]
[403916421,1769674729686,-181.08010149,0.00049315,30]
[403916422,1769674729723,-151.0,0.00049315,30]
[403916423,1769674729761,-151.0,0.00049315,30]
[403916424,1769674729795,-156.587,0.00049315,30]
[403916425,1769674729829,-2000.0,0.00049315,30]
[403916426,1769674729863,-162.380719,0.00049315,30]
[403916427,1769674729896,-398.4119403,0.00049315,30]
[403916428,1769674729930,-168.3888056,0.00049315,30]
[403916429,1769674729963,-241.49543956,0.00049315,30]
[403916430,1769674729999,-174.61919141,0.00049315,30]
[403916431,1769674730033,-1265.9906943,0.00049315,30]
[403916432,1769674730069,-181.08010149,0.00049315,30]
[403916433,1769674730105,-187.78006525,0.00049315,30]
[403916434,1769674730140,-194.72792766,0.00049315,30]
[403916435,1769674730176,-201.93286099,0.00049315,30]
[403916436,1769674730213,-209.40437684,0.00049315,30]
[403916437,1769674730253,-217.15233878,0.00049315,30]
[403916438,1769674730294,-225.18697532,0.00049315,30]
[403916439,1769674730333,-233.51889341,0.00049315,30]
[403916440,1769674730367,-2408.30440697,0.00049315,30]
[403916441,1769674730403,-242.15909246,0.00049315,30]
[403916442,1769674730439,-251.11897888,0.00049315,30]
[403916443,1769674730475,-260.4103811,0.00049315,30]
[403916444,1769674730510,-328.6491084,0.00049315,30]
[403916445,1769674730542,-1870.0,0.00049315,120]
[403916446,1769674730575,-3670.0,0.00049315,120]
[403916447,1769674730610,-300.0,0.00049315,120]
[403916448,1769674730643,-300.0,0.00049315,120]
[403916449,1769674730676,-300.0,0.00049315,120]
[403916450,1769674730711,-300.0,0.00049315,120]
[403916451,1769674730748,-300.0,0.00049315,120]
[403916452,1769674730785,-300.0,0.00049315,120]
[403916453,1769674730822,-300.0,0.00049315,120]
[403916454,1769674730858,-300.0,0.00049315,120]
[403916455,1769674730898,-300.0,0.00049315,120]
[403916456,1769674730933,-300.0,0.00049315,120]
[403916457,1769674730969,-300.0,0.00049315,120]
[403916458,1769674731005,-300.0,0.00049315,120]
[403916459,1769674731041,-300.0,0.00049315,120]
[403916460,1769674731076,-300.0,0.00049315,120]
[403916461,1769674731111,-300.0,0.00049315,120]
[403916462,1769674731144,-300.0,0.00049315,120]
[403916463,1769674731178,-300.0,0.00049315,120]
[403916464,1769674731211,-300.0,0.00049315,120]
[403916465,1769674731247,-300.0,0.00049315,120]
[403916466,1769674731280,-300.0,0.00049315,120]
[403916467,1769674731312,-300.0,0.00049315,120]
[403916468,1769674731343,-300.0,0.00049315,120]
[403916469,1769674731375,-300.0,0.00049315,120]
[403916470,1769674731407,-300.0,0.00049315,120]
[403916471,1769674731439,-300.0,0.00049315,120]
[403916472,1769674731470,-300.0,0.00049315,120]
[403916473,1769674731610,-300.0,0.00049315,120]
[403916474,1769674731644,-300.0,0.00049315,120]
[403916475,1769674731678,-300.0,0.00049315,120]
[403916476,1769674731710,-300.0,0.00049315,120]
[403916477,1769674731743,-300.0,0.00049315,120]
[403916478,1769674731776,-300.0,0.00049315,120]
[403916479,1769674731811,-300.0,0.00049315,120]
[403916480,1769674731846,-300.0,0.00049315,120]
[403916481,1769674731882,-300.0,0.00049315,120]
[403916482,1769674731917,-300.0,0.00049315,120]
[403916483,1769674731952,-300.0,0.00049315,120]
[403916484,1769674731987,-300.0,0.00049315,120]
[403916485,1769674732099,177.231744,0.00034587,31]
[403916486,1769674732138,731.38,0.00040273,42]
[403916487,1769674732176,177.231744,0.00034587,31]
[403916488,1769674732216,731.38,0.00040821,43]
[403916489,1769674732256,177.231744,0.00034587,31]
[403916490,1769674732299,731.38,0.00041369,44]
[403916491,1769674732344,177.231744,0.000345,31]
[403916492,1769674732382,731.38,0.00041917,45]
[403916493,1769674732425,177.231744,0.00034587,31]
[403916494,1769674732463,731.38,0.00042465,46]
[403916495,1769674732504,177.231744,0.00034587,31]
[403916496,1769674732544,731.38,0.00043013,47]
[403916497,1769674732582,177.231744,0.00034587,31]
[403916498,1769674732624,731.38,0.00043561,48]
[403916499,1769674732663,177.231744,0.00034587,31]
[403916500,1769674732699,-210.7146925,0.00012199,2]
[403916501,1769674732750,-312.90981665,0.00012199,2]
[403916502,1769674732799,731.38,0.00044109,49]
[403916503,1769674732844,177.231744,0.000345,31]
[403916504,1769674732883,731.38,0.00044657,50]
[403916505,1769674732928,731.38,0.00045205,51]
[403916506,1769674732975,1245.71,0.000332,30]
[403916507,1769674733019,731.38,0.00045753,52]
[403916508,1769674733063,177.231744,0.00034587,31]
[403916509,1769674733106,731.41224022,0.00046301,53]
[403916510,1769674733147,177.231744,0.00034587,31]
[403916511,1769674733189,1245.71,0.00044,30]
[403916512,1769674733241,177.231744,0.00034587,31]
[403916513,1769674733289,177.231744,0.00034587,31]
[403916514,1769674733338,177.231744,0.000345,31]
[403916515,1769674733379,177.231744,0.00034587,31]
[403916516,1769674733424,177.231744,0.00034587,31]
[403916517,1769674733466,177.231744,0.00034587,31]
[403916518,1769674733535,177.23174,0.00034587,31]
[403916519,1769674733576,599.60298507,0.00049315,30]
[403916520,1769674733682,214.14262748,0.00031,120]
[403916521,1769674733738,214.14262748,0.000319,120]
[403916522,1769674733786,214.14262748,0.000329,120]
[403916523,1769674733834,214.14262748,0.000339,120]
[403916524,1769674733907,214.14262748,0.000349,120]
[403916525,1769674733940,-8952.7609817,0.000122,2]
[403916526,1769674734009,300.0,0.00049315,120]
[403916527,1769674734280,2282.8,0.00037074,120]
[403916528,1769674734667,4565.6,0.00041047,120]
[403916529,1769674734750,300.0,0.00049315,120]
[403916530,1769674734793,5000.0,0.00049315,30]
[403916531,1769674735029,6848.4,0.00045019,120]
[403916532,1769674735394,9131.2,0.00048991,120]
[403916533,1769674741818,300.0,0.00049315,120]
[403916534,1769674743704,880.632,0.00049315,30]
[403916535,1769674754705,-4821.5,0.00044414,30]
[403916536,1769674754746,-9643.0,0.00049173,30]
[403916537,1769674754785,-979801.4857,0.00049444,30]
[403916538,1769674754825,-412.2973279,0.000495,30]
[403916539,1769674754866,-174147.49635523,0.000496,120]
[403916540,1769674754905,-215.7329733,0.00049832,120]
[403916541,1769674754945,-1589.03865061,0.00049898,68]
[403916542,1769674754985,-2000.0,0.000499,120]
[403916543,1769674755025,-244.75304292,0.0004999,60]
[403916544,1769674755065,-1000.0,0.00049999,120]
[403916545,1769674755105,-556.07570432,0.0005,120]
[403916546,1769674755142,-494.99522157,0.0005,30]
[403916547,1769674755181,-500.0,0.0005,120]
[403916548,1769674755221,-1000.0,0.0005,120]
[403916549,1769674755260,-100000.0,0.0005,120]
[403916550,1769674755297,-501.07820154,0.0005,120]
[403916551,1769674755335,-2498.36972175,0.0005,120]
[403916552,1769674755373,-1532.0,0.0005,120]
[403916553,1769674755412,-58000.0,0.0005,120]
[403916554,1769674755450,-2000.0,0.0005,120]
[403916555,1769674755488,-4509.26010861,0.0005,120]
[403916556,1769674755525,-2770.00344553,0.0005,120]
[403916557,1769674755563,-4914.31569261,0.0005,120]
[403916558,1769674755600,-217.0,0.0005,120]
[403916559,1769674755637,-39518.74097965,0.0005,120]
[403916560,1769674755674,-162.63357684,0.0005,120]
[403916561,1769674755712,-50687.05945956,0.0005,120]
[403916562,1769674755749,-10066.0,0.0005,120]
[403916563,1769674755786,-6000.0,0.0005,30]
[403916564,1769674755824,-10864.92452227,0.0005,120]
[403916565,1769674755862,-178.21595887,0.0005,120]
[403916566,1769674755900,-592.1217548,0.0005,120]
[403916567,1769674755939,-61217.0676663,0.0005,120]
[403916568,1769674755976,-1115.1,0.0005,120]
[403916569,1769674756016,-217.43292674,0.0005,120]
[403916570,1769674756056,-2150.0,0.00050074,120]
[403916571,1769674756093,-1369.0,0.00050074,120]
[403916572,1769674756134,-2319.29,0.00050136,120]
[403916573,1769674756174,-5000.0,0.000502,120]
[403916574,1769674756213,-5000.0,0.000502,120]
[403916575,1769674756256,-5000.0,0.000502,120]
[403916576,1769674756296,-5000.0,0.000502,120]
[403916577,1769674756335,-5000.0,0.000502,120]
[403916578,1769674756372,-5000.0,0.000502,120]
[403916579,1769674756410,-11435.15791191,0.000502,120]
[403916580,1769674756444,-217.0,0.000504,120]
[403916581,1769674756478,-274.66320275,0.00050649,120]
[403916582,1769674756512,-217.0,0.000508,120]
[403916583,1769674756547,-2000.0,0.000509,120]
[403916584,1769674756580,-1000.0,0.00050999,120]
[403916585,1769674756615,-2000.0,0.00051,120]
[403916586,1769674756651,-1000.0,0.00051,120]
[403916587,1769674756685,-2000.0,0.00051,120]
[403916588,1769674756719,-2000.11,0.00051,90]
[403916589,1769674756756,-2000.0,0.00051,90]
[403916590,1769674756790,-2000.0,0.00051,90]
[403916591,1769674756826,-329325.0489018,0.00051,120]
[403916592,1769674756862,-154.87283431,0.00051,120]
[403916593,1769674756896,-3000.0,0.00051,85]
[403916594,1769674756931,-3000.0,0.0005101,85]
[403916595,1769674757090,-3000.0,0.0005102,85]